[Event "46th GRE-chT Premier 2018"]
[Site "Rio Achaia"]
[Date "2018.07.11"]
[Round "2"]
[White "Ivanova, Simoneta"]
[Black "Antoniadou, Paraskevi"]
[Result "1-0"]
[ECO "D21"]
[WhiteElo "2091"]
[BlackElo "1764"]
[Annotator "NA"]
[PlyCount "97"]
[EventDate "2018.07.10"]
[EventType "team-tourn"]
[EventCountry "GRE"]
[SourceTitle "playchess.com"]
[Source "ChessBase"]
[SourceQuality "1"]
[TimeControl "40/5400+30:1800+30"]

1. d4 {[%emt 0:00:00]} d5 {[%emt 0:00:00]} 2. c4 {[%emt 0:00:00]} dxc4 {[%emt 0:00:00]} 3. Nf3 {[%emt 0:00:26]} a6 {[%emt 0:00:14]} 4. a4 {[%emt 0:01:51]} Nf6 {[%emt 0:00:54]} 5. e3 {[%emt 0:00:49]} e6 {[%emt 0:00:28]} 6. Bxc4 {[%emt 0:00:18]} c5 {[%emt 0:01:44]} 7. O-O {[%emt 0:00:58]} Be7 {[%emt 0:00:26]} 8. Qe2 {[%emt 0:01:43]} O-O {[%emt 0:00:57]} 9. Rd1 {[%emt 0:06:48]} Qc7 {[%emt 0:02:23]} 10. Nc3 {[%emt 0:03:41]} Nc6 {[%emt 0:03:12]} 11. Bd2 {[%emt 0:10:41]} Bd7 {[%emt 0:07:28]} 12. Rac1 {[%emt 0:08:37]} Qb6 {[%emt 0:10:41]} 13. d5 {[%emt 0:14:02]} exd5 {[%emt 0:02:01]} 14. Nxd5 {[%emt 0:00:02]} Nxd5 {[%emt 0:05:17]} 15. Bxd5 {[%emt 0:00:05]} Rad8 {[%emt 0:07:22]} 16. Qc4 {[%emt 0:09:15]} Bc8 {[%emt 0:08:28]} 17. Bc3 {[%emt 0:02:27]} Nb4 {[%emt 0:10:28]} 18. Bxb4 {[%emt 0:01:40]} Qxb4 {[%emt 0:01:20]} 19. Bxf7+ {[%emt 0:04:30]} Rxf7 {[%emt 0:06:51]} 20. Rxd8+ {[%emt 0:00:13]} Bxd8 {[%emt 0:00:07]} 21. Qxb4 {[%emt 0:00:34]} cxb4 {[%emt 0:00:08]} 22. Rxc8 {[%emt 0:00:06]} Rd7 {[%emt 0:02:04]} 23. g3 {[%emt 0:01:29]} h6 {[%emt 0:01:48]} 24. e4 {[%emt 0:10:10]} Rd1+ {[%emt 0:02:41]} 25. Kg2 {[%emt 0:00:06]} Kh7 {[%emt 0:00:15]} 26. e5 {[%emt 0:03:03]} Kg6 {[%emt 0:00:36]} 27. Rc4 {[%emt 0:01:34]} a5 {[%emt 0:02:08]} 28. Rd4 {[%emt 0:04:45]} Rxd4 {[%emt 0:00:07]} 29. Nxd4 {[%emt 0:00:02]} Bb6 {[%emt 0:00:31]} 30. Nb5 {[%emt 0:01:26]} Kf5 {[%emt 0:07:36]} 31. Nd6+ {[%emt 0:03:19]} Kxe5 {[%emt 0:00:11]} 32. Nc4+ {[%emt 0:00:09]} Kd4 {[%emt 0:00:52]} 33. Nxb6 {[%emt 0:00:05]} Kd3 {[%emt 0:00:12]} 34. Kf1 {[%emt 0:03:00]} Kc2 {[%emt 0:01:25]} 35. Nc4 {[%emt 0:07:54]} Kb3 {[%emt 0:02:04]} 36. Nxa5+ {[%emt 0:00:09]} Kxa4 {[%emt 0:00:12]} 37. Nxb7 {[%emt 0:00:39]} Kb3 {[%emt 0:00:12]} 38. Ke2 {[%emt 0:00:50]} Kxb2 {[%emt 0:03:27]} 39. Nc5 {[%emt 0:00:50]} Kc3 {[%emt 0:00:33]} 40. Na4+ {[%emt 0:00:00]} Kb3 {[%emt 0:00:00]} 41. Nc5+ {[%emt 0:02:54]} Kc4 {[%emt 0:01:30]} 42. Nd3 {[%emt 0:00:21]} b3 {[%emt 0:01:01]} 43. Ke3 {[%emt 0:03:54]} Kd5 {[%emt 0:01:48]} 44. Nb2 {[%emt 0:00:39]} Ke5 {[%emt 0:00:48]} 45. Kd3 {[%emt 0:01:35]} g5 {[%emt 0:00:44]} 46. f3 {[%emt 0:03:19]} h5 {[%emt 0:02:20]} 47. Kc3 {[%emt 0:01:38]} h4 {[%emt 0:02:16]} 48. Kc4 {[%emt 0:03:04]} hxg3 {[%emt 0:03:00]} 49. hxg3 {[%emt 0:00:05] Kd5+} 1-0

[Event "46th GRE-chT Premier 2018"]
[Site "Rio Achaia"]
[Date "2018.07.11"]
[Round "2"]
[White "Manelidis, Savvas"]
[Black "Georgiev, Krum"]
[Result "0-1"]
[ECO "B90"]
[WhiteElo "2090"]
[BlackElo "2330"]
[Annotator "NA"]
[PlyCount "54"]
[EventDate "2018.07.10"]
[EventType "team-tourn"]
[EventCountry "GRE"]
[SourceTitle "playchess.com"]
[Source "ChessBase"]
[SourceQuality "1"]
[TimeControl "40/5400+30:1800+30"]

1. e4 {[%emt 0:00:00]} c5 {[%emt 0:00:00]} 2. Nf3 {[%emt 0:00:11]} d6 {[%emt 0:00:00]} 3. d4 {[%emt 0:00:16]} cxd4 {[%emt 0:00:05]} 4. Nxd4 {[%emt 0:00:11]} Nf6 $14 {[%emt 0:00:11]} 5. Nc3 {[%emt 0:00:15]} a6 {[%emt 0:00:13]} 6. Qd3 {[%emt 0:00:11]} e6 {[%emt 0:09:22]} 7. Be2 {[%emt 0:00:19]} Nbd7 {[%emt 0:21:15]} 8. O-O {[%emt 0:00:25]} b5 {[%emt 0:02:21]} 9. b4 {[%emt 0:00:10]} Bb7 {[%emt 0:01:11]} 10. a4 {[%emt 0:00:28]} bxa4 {[%emt 0:01:02]} 11. Rxa4 {[%emt 0:00:07]} Be7 {[%emt 0:02:39]} 12. Bd2 {[%emt 0:06:09]} O-O {[%emt 0:04:45]} 13. Nb3 {[%emt 0:24:49]} Rc8 {[%emt 0:18:33]} 14. Na5 {[%emt 0:09:28]} Ba8 {[%emt 0:00:03]} 15. Qxa6 {[%emt 0:04:47]} Nb6 {[%emt 0:08:27]} 16. Ra2 {[%emt 0:11:02]} d5 {[%emt 0:00:36]} 17. e5 {[%emt 0:05:18]} Nfd7 {[%emt 0:02:13]} 18. Nb5 {[%emt 0:05:27]} Nxe5 {[%emt 0:07:36]} 19. Na7 {[%emt 0:00:53]} Rb8 {[%emt 0:00:55]} 20. f4 {[%emt 0:12:40]} Nbc4 {[%emt 0:05:38]} 21. Nxc4 {[%emt 0:06:51]} Nxc4 {[%emt 0:00:07]} 22. Bxc4 {[%emt 0:00:16]} dxc4 {[%emt 0:00:10]} 23. c3 {[%emt 0:00:25]} Qd5 {[%emt 0:03:03]} 24. Bc1 {[%emt 0:06:09]} Bf6 {[%emt 0:02:52]} 25. Qa3 {[%emt 0:04:09]} Qd3 {[%emt 0:00:39]} 26. Bb2 {[%emt 0:01:19]} Bd8 {[%emt 0:00:15]} 27. b5 {[%emt 0:00:37]} Bb6+ {[%emt 0:00:16]} 0-1

[Event "46th GRE-chT Premier 2018"]
[Site "Rio Achaia"]
[Date "2018.07.11"]
[Round "2"]
[White "Krasteva, Beloslava"]
[Black "Koutsogiannopoulou, Theodora"]
[Result "1-0"]
[ECO "E92"]
[WhiteElo "2086"]
[BlackElo "1852"]
[Annotator "NA"]
[PlyCount "101"]
[EventDate "2018.07.10"]
[EventType "team-tourn"]
[EventCountry "GRE"]
[SourceTitle "playchess.com"]
[Source "ChessBase"]
[SourceQuality "1"]
[TimeControl "40/5400+30:1800+30"]

1. d4 {[%emt 0:00:00]} Nf6 {[%emt 0:00:00]} 2. c4 {[%emt 0:00:00]} g6 {[%emt 0:00:00]} 3. Nc3 {[%emt 0:00:01]} Bg7 {[%emt 0:00:00]} 4. e4 {[%emt 0:00:15]} d6 {[%emt 0:00:00]} 5. Nf3 {[%emt 0:00:09]} O-O {[%emt 0:00:10]} 6. Be2 {[%emt 0:00:18]} e5 {[%emt 0:00:59]} 7. d5 {[%emt 0:00:28]} a5 {[%emt 0:00:43]} 8. Bg5 {[%emt 0:00:37]} h6 {[%emt 0:00:27]} 9. Bh4 {[%emt 0:00:57]} Na6 {[%emt 0:02:36]} 10. Nd2 {[%emt 0:01:26]} Qe8 {[%emt 0:01:38]} 11. O-O {[%emt 0:02:47]} Nh7 {[%emt 0:03:51]} 12. Kh1 {[%emt 0:03:27]} f5 {[%emt 0:07:12]} 13. exf5 {[%emt 0:13:26]} gxf5 {[%emt 0:00:31]} 14. Bh5 {[%emt 0:01:17]} Qd7 {[%emt 0:00:08]} 15. f4 {[%emt 0:05:11]} Nc5 {[%emt 0:19:24]} 16. Qe2 {[%emt 0:06:18]} e4 {[%emt 0:14:28]} 17. Nd1 {[%emt 0:13:51]} Nd3 {[%emt 0:05:18]} 18. Rb1 {[%emt 0:00:49]} b5 {[%emt 0:06:04]} 19. Bg6 {[%emt 0:10:42]} Nf6 {[%emt 0:02:29]} 20. Ne3 {[%emt 0:01:25]} bxc4 {[%emt 0:10:27]} 21. Nxf5 {[%emt 0:13:00]} Nxd5 {[%emt 0:04:46]} 22. Nxg7 {[%emt 0:06:03]} Qxg7 {[%emt 0:00:18]} 23. Bxe4 {[%emt 0:01:30]} N5xf4 {[%emt 0:06:08]} 24. Qe3 {[%emt 0:07:29]} d5 {[%emt 0:02:49]} 25. Bf3 {[%emt 0:00:18]} Ra6 {[%emt 0:04:46]} 26. g3 {[%emt 0:01:43]} Re6 {[%emt 0:05:23]} 27. Qg1 {[%emt 0:01:15]} Nh3 {[%emt 0:01:41]} 28. Qg2 {[%emt 0:00:34]} c6 {[%emt 0:00:15]} 29. Qxh3 {[%emt 0:04:43]} Nf2+ {[%emt 0:01:06]} 30. Rxf2 {[%emt 0:00:02]} Re1+ {[%emt 0:00:12]} 31. Rxe1 {[%emt 0:00:18]} Bxh3 {[%emt 0:00:07]} 32. g4 {[%emt 0:02:21]} Qd4 {[%emt 0:00:53]} 33. Rg1 {[%emt 0:02:18]} Rb8 {[%emt 0:01:03]} 34. b3 c3 {[%emt 0:00:12]} 35. Nb1 {[%emt 0:01:34]} Qc5 {[%emt 0:00:34]} 36. Rc2 {[%emt 0:00:38]} d4 {[%emt 0:00:26]} 37. Bf2 {[%emt 0:00:27]} Qb4 {[%emt 0:00:31]} 38. g5 {[%emt 0:00:41]} Bf5 {[%emt 0:00:23]} 39. gxh6+ {[%emt 0:00:20]} Kh7 {[%emt 0:00:17]} 40. Re2 {[%emt 0:00:00]} d3 {[%emt 0:00:00]} 41. Re5 {[%emt 0:02:35]} Qf4 {[%emt 0:11:11]} 42. Re3 {[%emt 0:10:08]} c2 {[%emt 0:02:48]} 43. Nd2 {[%emt 0:00:35]} Rg8 {[%emt 0:10:23]} 44. Re7+ {[%emt 0:04:10]} Kh8 {[%emt 0:00:07]} 45. Rge1 {[%emt 0:02:15]} Bg4 {[%emt 0:08:02]} 46. Be4 {[%emt 0:03:23]} Qxh6 {[%emt 0:01:32]} 47. Bd4+ {[%emt 0:01:06]} Qg7 {[%emt 0:00:34]} 48. Bxg7+ {[%emt 0:00:42]} Rxg7 {[%emt 0:00:05]} 49. Re8+ {[%emt 0:00:20]} Rg8 {[%emt 0:00:10]} 50. Rxg8+ {[%emt 0:00:12]} Kxg8 {[%emt 0:00:05]} 51. Bxd3 {[%emt 0:00:12]} 1-0

[Event "46th GRE-chT Premier 2018"]
[Site "Rio Achaia"]
[Date "2018.07.11"]
[Round "2"]
[White "Tepelenis, Nikolaos"]
[Black "Drakopoulos, Polihronis"]
[Result "1/2-1/2"]
[ECO "B22"]
[WhiteElo "2079"]
[BlackElo "2105"]
[Annotator "NA"]
[PlyCount "60"]
[EventDate "2018.07.10"]
[EventType "team-tourn"]
[EventCountry "GRE"]
[SourceTitle "playchess.com"]
[Source "ChessBase"]
[SourceQuality "1"]
[TimeControl "40/5400+30:1800+30"]

1. e4 {[%emt 0:00:00]} c5 {[%emt 0:03:02]} 2. c3 {[%emt 0:00:00]} d5 {[%emt 0:00:32]} 3. exd5 {[%emt 0:00:00]} Qxd5 {[%emt 0:00:04]} 4. d4 {[%emt 0:00:05]} Nf6 {[%emt 0:00:33]} 5. Nf3 {[%emt 0:00:12]} Bg4 {[%emt 0:01:02]} 6. Be2 {[%emt 0:00:13]} e6 {[%emt 0:01:02]} 7. h3 {[%emt 0:00:16]} Bh5 {[%emt 0:01:02]} 8. O-O {[%emt 0:00:34]} Nc6 {[%emt 0:01:30]} 9. Be3 {[%emt 0:00:52]} cxd4 {[%emt 0:01:17]} 10. cxd4 {[%emt 0:01:10]} Bd6 {[%emt 0:02:09]} 11. Nc3 {[%emt 0:00:50]} Qa5 {[%emt 0:00:13]} 12. a3 {[%emt 0:05:45]} O-O {[%emt 0:09:42]} 13. b4 {[%emt 0:02:19]} Qd8 {[%emt 0:01:09]} 14. Qb3 {[%emt 0:09:31]} h6 {[%emt 0:09:05]} 15. Rad1 {[%emt 0:08:08]} Ne7 {[%emt 0:02:43]} 16. g4 {[%emt 0:03:33]} Bg6 {[%emt 0:04:06]} 17. Ne5 {[%emt 0:05:28]} Bh7 {[%emt 0:14:24]} 18. Bf3 {[%emt 0:01:18]} Nfd5 {[%emt 0:20:00]} 19. Nxd5 {[%emt 0:02:40]} Nxd5 {[%emt 0:00:22]} 20. Bxd5 {[%emt 0:02:41]} exd5 {[%emt 0:00:02]} 21. Qxd5 {[%emt 0:01:49]} Qe7 {[%emt 0:01:38]} 22. Nc4 {[%emt 0:15:29]} Rad8 {[%emt 0:04:47]} 23. Nxd6 {[%emt 0:03:29]} Rxd6 {[%emt 0:01:50]} 24. Qe5 {[%emt 0:01:53]} Qd7 {[%emt 0:01:58]} 25. Bf4 {[%emt 0:08:08]} Rd5 {[%emt 0:03:50]} 26. Qc7 {[%emt 0:01:01]} Kh8 {[%emt 0:00:55]} 27. Kh2 {[%emt 0:00:07]} Kg8 {[%emt 0:00:07]} 28. Kg1 {[%emt 0:00:05]} Kh8 {[%emt 0:00:10]} 29. Kh2 {[%emt 0:00:07]} Kg8 {[%emt 0:00:08]} 30. Kg1 {[%emt 0:00:05]} Kh8 {[%emt 0:00:32]} 1/2-1/2

[Event "46th GRE-chT Premier 2018"]
[Site "Rio Achaia"]
[Date "2018.07.11"]
[Round "2"]
[White "Iordanidou, Zoi"]
[Black "Manelidou, Maria"]
[Result "1/2-1/2"]
[ECO "C42"]
[WhiteElo "2060"]
[BlackElo "2078"]
[Annotator "NA"]
[PlyCount "61"]
[EventDate "2018.07.10"]
[EventType "team-tourn"]
[EventCountry "GRE"]
[SourceTitle "playchess.com"]
[Source "ChessBase"]
[SourceQuality "1"]
[TimeControl "40/5400+30:1800+30"]

1. e4 {[%emt 0:00:00]} e5 {[%emt 0:00:00]} 2. Nf3 {[%emt 0:00:00]} Nf6 {[%emt 0:00:00]} 3. Nxe5 {[%emt 0:00:00]} d6 {[%emt 0:00:00]} 4. Nf3 {[%emt 0:00:00]} Nxe4 {[%emt 0:00:00]} 5. Qe2 {[%emt 0:00:02]} Qe7 {[%emt 0:00:04]} 6. Nc3 {[%emt 0:00:10]} Nxc3 {[%emt 0:00:09]} 7. dxc3 {[%emt 0:00:08]} Qxe2+ {[%emt 0:00:27]} 8. Bxe2 {[%emt 0:00:07]} Be7 {[%emt 0:00:14]} 9. Be3 {[%emt 0:00:19]} Nc6 {[%emt 0:00:27]} 10. O-O-O {[%emt 0:00:30]} O-O {[%emt 0:00:09]} 11. Rhe1 {[%emt 0:00:18]} Re8 {[%emt 0:00:48]} 12. Nd4 {[%emt 0:00:29]} Nxd4 {[%emt 0:00:12]} 13. cxd4 {[%emt 0:00:08]} Be6 {[%emt 0:00:20]} 14. d5 {[%emt 0:00:35]} Bd7 {[%emt 0:00:09]} 15. Bd3 {[%emt 0:00:29]} Bf6 {[%emt 0:01:00]} 16. Re2 {[%emt 0:00:47]} a6 {[%emt 0:00:52]} 17. Rde1 {[%emt 0:00:41]} Re5 {[%emt 0:00:24]} 18. c4 {[%emt 0:00:15]} Rae8 {[%emt 0:00:16]} 19. Bf4 {[%emt 0:00:12]} Rxe2 {[%emt 0:00:10]} 20. Rxe2 {[%emt 0:00:06]} Rxe2 {[%emt 0:00:09]} 21. Bxe2 {[%emt 0:00:05]} h6 {[%emt 0:00:19]} 22. b3 {[%emt 0:00:36]} g5 {[%emt 0:01:56]} 23. Be3 {[%emt 0:01:35]} Be5 {[%emt 0:00:46]} 24. g3 {[%emt 0:00:16]} Kg7 {[%emt 0:00:40]} 25. Kc2 {[%emt 0:00:56]} c6 {[%emt 0:03:50]} 26. Bf3 {[%emt 0:03:05]} Bf5+ {[%emt 0:03:02]} 27. Kd2 {[%emt 0:02:45]} c5 {[%emt 0:01:33]} 28. a4 {[%emt 0:01:54]} Kf6 {[%emt 0:01:12]} 29. Bd1 {[%emt 0:00:43]} Ke7 {[%emt 0:00:47]} 30. Be2 {[%emt 0:00:26]} Bb2 {[%emt 0:02:30]} 31. Bd1 {[%emt 0:05:27]} 1/2-1/2

[Event "46th GRE-chT Premier 2018"]
[Site "Rio Achaia"]
[Date "2018.07.11"]
[Round "2"]
[White "Damianou, Ioannis"]
[Black "Liakos, Christos - Konstant"]
[Result "1-0"]
[ECO "A39"]
[WhiteElo "2058"]
[BlackElo "1370"]
[Annotator "NA"]
[PlyCount "89"]
[EventDate "2018.07.10"]
[EventType "team-tourn"]
[EventCountry "GRE"]
[SourceTitle "playchess.com"]
[Source "ChessBase"]
[SourceQuality "1"]
[TimeControl "40/5400+30:1800+30"]

1. Nf3 {[%emt 0:00:00]} c5 {[%emt 0:01:05]} 2. g3 {[%emt 0:00:43]} Nc6 {[%emt 0:03:06]} 3. c4 {[%emt 0:00:20]} Nf6 {[%emt 0:00:34]} 4. Bg2 {[%emt 0:00:29]} g6 {[%emt 0:00:18]} 5. O-O {[%emt 0:00:28]} Bg7 {[%emt 0:00:16]} 6. Nc3 {[%emt 0:00:23]} O-O {[%emt 0:00:17]} 7. d4 {[%emt 0:01:16]} cxd4 {[%emt 0:00:46]} 8. Nxd4 {[%emt 0:00:06]} Nxd4 {[%emt 0:06:29]} 9. Qxd4 {[%emt 0:00:08]} d6 {[%emt 0:00:08]} 10. Qd2 {[%emt 0:02:35]} Qa5 {[%emt 0:02:02]} 11. b3 {[%emt 0:01:10]} a6 {[%emt 0:04:25]} 12. Bb2 {[%emt 0:00:31]} Rb8 {[%emt 0:02:42]} 13. Rfd1 {[%emt 0:02:28]} Kh8 {[%emt 0:05:54]} 14. Rac1 {[%emt 0:07:00]} Bf5 {[%emt 0:05:44]} 15. h3 {[%emt 0:08:05]} Rfc8 {[%emt 0:01:20]} 16. e4 {[%emt 0:03:07]} Be6 {[%emt 0:00:33]} 17. Nd5 {[%emt 0:01:55]} Qxd2 {[%emt 0:00:13]} 18. Rxd2 {[%emt 0:00:04]} Nxd5 {[%emt 0:00:29]} 19. exd5 {[%emt 0:00:25]} Bxb2 {[%emt 0:00:20]} 20. Rxb2 {[%emt 0:00:08]} Bd7 {[%emt 0:03:24]} 21. Re2 {[%emt 0:00:41]} e5 {[%emt 0:03:02]} 22. dxe6 {[%emt 0:01:05]} Bxe6 {[%emt 0:08:09]} 23. Rd1 {[%emt 0:00:21]} b5 {[%emt 0:00:20]} 24. cxb5 {[%emt 0:01:01]} axb5 {[%emt 0:04:31]} 25. Rxd6 {[%emt 0:00:14]} Rc1+ {[%emt 0:00:45]} 26. Kh2 {[%emt 0:00:06]} Rc5 {[%emt 0:02:17]} 27. Red2 {[%emt 0:05:40]} Kg7 {[%emt 0:02:53]} 28. Be4 {[%emt 0:02:32]} h5 {[%emt 0:08:55]} 29. h4 {[%emt 0:03:06]} Re5 {[%emt 0:06:42]} 30. Bg2 {[%emt 0:02:27]} Rc5 {[%emt 0:05:50]} 31. Rc6 {[%emt 0:04:06]} Rxc6 {[%emt 0:02:40]} 32. Bxc6 {[%emt 0:00:06]} Rb6 {[%emt 0:00:07]} 33. Be4 {[%emt 0:02:33]} Kf6 {[%emt 0:02:27]} 34. Kg2 {[%emt 0:00:16]} Ke5 {[%emt 0:02:33]} 35. Kf3 {[%emt 0:01:27]} f5 {[%emt 0:02:56]} 36. Bd3 {[%emt 0:02:51]} Rd6 {[%emt 0:04:02]} 37. Re2+ {[%emt 0:01:41]} Kd4 {[%emt 0:02:15]} 38. Bxb5 {[%emt 0:00:17]} Rb6 {[%emt 0:00:31]} 39. Ba4 {[%emt 0:01:54]} Bd5+ {[%emt 0:01:24]} 40. Kf4 {[%emt 0:00:00]} Kd3 {[%emt 0:00:00]} 41. Re3+ {[%emt 0:00:55]} Kd2 {[%emt 0:03:07]} 42. Kg5 {[%emt 0:01:10]} Be4 {[%emt 0:03:28]} 43. Be8 {[%emt 0:00:45]} Ra6 {[%emt 0:00:32]} 44. Bxg6 {[%emt 0:01:02]} Rxg6+ {[%emt 0:00:13]} 45. Kxg6 1-0

[Event "46th GRE-chT Premier 2018"]
[Site "Rio Achaia"]
[Date "2018.07.11"]
[Round "2"]
[White "Tsagkaropoulos, Spyridon"]
[Black "Papageorgiou, Ioannis"]
[Result "1-0"]
[ECO "B40"]
[WhiteElo "2052"]
[BlackElo "1983"]
[Annotator "NA"]
[PlyCount "119"]
[EventDate "2018.07.10"]
[EventType "team-tourn"]
[EventCountry "GRE"]
[SourceTitle "playchess.com"]
[Source "ChessBase"]
[SourceQuality "1"]
[TimeControl "40/5400+30:1800+30"]

1. e4 {[%emt 0:06:25]} c5 {[%emt 0:00:00]} 2. Nf3 {[%emt 0:00:09]} e6 {[%emt 0:00:00]} 3. b3 {[%emt 0:01:12]} d5 {[%emt 0:01:44]} 4. exd5 {[%emt 0:00:11]} exd5 {[%emt 0:00:08]} 5. Bb5+ {[%emt 0:00:56]} Bd7 {[%emt 0:01:31]} 6. Qe2+ {[%emt 0:01:13]} Qe7 {[%emt 0:01:24]} 7. O-O {[%emt 0:00:25]} Qxe2 {[%emt 0:14:57]} 8. Bxe2 {[%emt 0:01:09]} Nc6 {[%emt 0:04:59]} 9. Bb2 {[%emt 0:01:58]} f6 {[%emt 0:18:09]} 10. d4 {[%emt 0:01:21]} O-O-O {[%emt 0:06:25]} 11. Rd1 {[%emt 0:10:27]} Bf5 {[%emt 0:05:29]} 12. Rd2 {[%emt 0:08:34]} Nh6 {[%emt 0:11:41]} 13. Nc3 {[%emt 0:04:01]} cxd4 {[%emt 0:10:47]} 14. Nxd4 {[%emt 0:01:17]} Nxd4 {[%emt 0:00:38]} 15. Rxd4 {[%emt 0:00:09]} Bxc2 {[%emt 0:00:10]} 16. Rc1 {[%emt 0:03:52]} Bf5 {[%emt 0:05:12]} 17. Rxd5 {[%emt 0:08:38]} Rxd5 {[%emt 0:01:25]} 18. Nxd5+ {[%emt 0:00:06]} Kb8 {[%emt 0:00:30]} 19. h3 {[%emt 0:08:10]} Bd6 {[%emt 0:04:15]} 20. Bf3 {[%emt 0:04:55]} Nf7 {[%emt 0:04:49]} 21. Rd1 {[%emt 0:03:13]} Be5 {[%emt 0:01:29]} 22. Ba3 {[%emt 0:01:18]} Rd8 {[%emt 0:00:58]} 23. g4 {[%emt 0:00:43]} Ng5 {[%emt 0:00:20]} 24. Bg2 {[%emt 0:11:01]} Bc2 {[%emt 0:01:18]} 25. Rc1 {[%emt 0:01:50]} Be4 {[%emt 0:00:49]} 26. Bxe4 {[%emt 0:03:45]} Nxe4 {[%emt 0:00:10]} 27. Rd1 {[%emt 0:01:05]} Ng5 {[%emt 0:01:24]} 28. Kg2 {[%emt 0:00:17]} Ne6 {[%emt 0:00:10]} 29. Bc1 {[%emt 0:01:29]} Bd4 {[%emt 0:00:24]} 30. Nf4 {[%emt 0:02:02]} Be5 {[%emt 0:01:40]} 31. Rxd8+ {[%emt 0:00:20]} Nxd8 {[%emt 0:00:06]} 32. Nd5 {[%emt 0:00:34]} Kc8 {[%emt 0:00:43]} 33. Be3 {[%emt 0:03:05]} b6 {[%emt 0:00:18]} 34. f4 {[%emt 0:00:39]} Bd6 {[%emt 0:00:25]} 35. Kf3 {[%emt 0:00:35]} Kd7 {[%emt 0:00:40]} 36. Ke4 {[%emt 0:00:35]} Nf7 {[%emt 0:00:54]} 37. Nc3 {[%emt 0:02:38]} Bb4 {[%emt 0:00:13]} 38. Ne2 {[%emt 0:02:10]} g6 {[%emt 0:01:06]} 39. Kd5 {[%emt 0:00:30]} Nd6 {[%emt 0:00:57]} 40. a4 {[%emt 0:00:00]} Nc8 {[%emt 0:00:00]} 41. Kc4 {[%emt 0:08:43]} Bd6 {[%emt 0:03:27]} 42. Kb5 {[%emt 0:00:31]} Kc7 {[%emt 0:02:55]} 43. Ka6 {[%emt 0:01:23]} Kb8 {[%emt 0:01:21]} 44. Nc3 {[%emt 0:01:45]} f5 {[%emt 0:08:23]} 45. Nd5 {[%emt 0:04:55]} fxg4 {[%emt 0:03:38]} 46. hxg4 {[%emt 0:00:11]} h5 {[%emt 0:00:17]} 47. f5 {[%emt 0:02:19]} gxf5 {[%emt 0:03:16]} 48. gxh5 {[%emt 0:01:16]} Ne7 {[%emt 0:00:50]} 49. Nxe7 {[%emt 0:01:28]} Bxe7 {[%emt 0:00:08]} 50. a5 {[%emt 0:01:35]} Kc7 {[%emt 0:03:56]} 51. h6 {[%emt 0:09:12]} Bf6 {[%emt 0:00:18]} 52. axb6+ {[%emt 0:00:41]} axb6 {[%emt 0:00:10]} 53. b4 {[%emt 0:02:08]} Kd6 {[%emt 0:05:07]} 54. b5 {[%emt 0:01:24]} Ke5 {[%emt 0:00:17]} 55. Bxb6 {[%emt 0:00:51]} f4 {[%emt 0:00:47]} 56. Bc7+ {[%emt 0:01:42]} Kf5 {[%emt 0:00:30]} 57. Bxf4 {[%emt 0:01:22]} Kxf4 {[%emt 0:00:08]} 58. b6 {[%emt 0:00:11]} Kg5 {[%emt 0:01:09]} 59. b7 {[%emt 0:00:07]} Be5 {[%emt 0:00:10]} 60. h7 {[%emt 0:00:06]} 1-0

[Event "46th GRE-chT Premier 2018"]
[Site "Rio Achaia"]
[Date "2018.07.11"]
[Round "2"]
[White "Abelakiotis, Stavros"]
[Black "Kyriakidis, Anastasios P"]
[Result "1-0"]
[ECO "B01"]
[WhiteElo "2029"]
[BlackElo "1352"]
[Annotator "NA"]
[PlyCount "51"]
[EventDate "2018.07.10"]
[EventType "team-tourn"]
[EventCountry "GRE"]
[SourceTitle "playchess.com"]
[Source "ChessBase"]
[SourceQuality "1"]
[TimeControl "40/5400+30:1800+30"]

1. e4 {[%emt 0:00:00]} d5 {[%emt 0:00:00]} 2. exd5 {[%emt 0:00:00]} Qxd5 {[%emt 0:00:00]} 3. Nf3 {[%emt 0:00:00]} Qd8 {[%emt 0:00:00]} 4. d4 {[%emt 0:00:41]} Nf6 {[%emt 0:00:30]} 5. Be2 {[%emt 0:00:49]} Bf5 {[%emt 0:00:27]} 6. O-O {[%emt 0:01:36]} e6 {[%emt 0:00:05]} 7. c4 {[%emt 0:03:28]} Be7 8. Qb3 {[%emt 0:05:45]} Qc8 {[%emt 0:08:38]} 9. Nc3 {[%emt 0:02:47]} Nbd7 {[%emt 0:00:22]} 10. Bf4 {[%emt 0:02:44]} a6 {[%emt 0:01:31]} 11. h3 {[%emt 0:07:37]} O-O {[%emt 0:00:09]} 12. Nh4 {[%emt 0:00:43]} Bg6 {[%emt 0:00:52]} 13. Nxg6 {[%emt 0:02:20]} hxg6 {[%emt 0:00:07]} 14. Bf3 {[%emt 0:00:44]} Rb8 {[%emt 0:01:42]} 15. c5 {[%emt 0:06:27]} Nh7 {[%emt 0:13:09]} 16. a4 {[%emt 0:06:43]} Bf6 {[%emt 0:01:23]} 17. Rad1 {[%emt 0:02:39]} e5 {[%emt 0:02:22]} 18. dxe5 {[%emt 0:04:15]} Nxe5 {[%emt 0:04:50]} 19. Bxe5 {[%emt 0:17:42]} Bxe5 {[%emt 0:00:09]} 20. Bg4 {[%emt 0:03:03]} Qe8 {[%emt 0:00:12]} 21. Rfe1 {[%emt 0:00:18]} Nf6 {[%emt 0:07:01]} 22. f4 {[%emt 0:06:16]} Nxg4 {[%emt 0:02:39]} 23. hxg4 {[%emt 0:00:40]} Bd4+ {[%emt 0:12:56]} 24. Kf1 {[%emt 0:00:00]} Qd7 {[%emt 0:07:50]} 25. Re4 {[%emt 0:03:27]} Rbd8 {[%emt 0:05:48]} 26. Ne2 {[%emt 0:01:44]} 1-0